[Event "Titled Tuesday Blitz August 09 Early 2022"]
[White "Todorovic, Bojan"]
[Black "Skawinski, Arkadiusz"]
[WhiteFideId "917087"]
[BlackFideId "1126415"]
[WhiteElo "2266"]
[BlackElo "2149"]
[Result "0-1"]
[Round "01"]
[TimeControl "180+1"]
[Date "2022.08.09"]
[WhiteClock "0:00:01"]
[BlackClock "0:00:03"]

1. d4 {[%clk 0:02:57]}  d5 {[%clk 0:02:59]} 2. c4 {[%clk 0:02:56]}  e6 {[%clk 0:03:00]} 3. Nc3 {[%clk 0:02:56]}  c6 {[%clk 0:03:00]} 4. Nf3 {[%clk 0:02:52]}  dxc4 {[%clk 0:02:54]} 5. e3 {[%clk 0:02:48]}  b5 {[%clk 0:02:54]} 6. a4 {[%clk 0:02:47]}  Bb4 {[%clk 0:02:54]} 7. Bd2 {[%clk 0:02:44]}  a5 {[%clk 0:02:54]} 8. axb5 {[%clk 0:02:37]}  Bxc3 {[%clk 0:02:54]} 9. Bxc3 {[%clk 0:02:34]}  cxb5 {[%clk 0:02:55]} 10. b3 {[%clk 0:02:34]}  Bb7 {[%clk 0:02:55]} 11. bxc4 {[%clk 0:02:33]}  b4 {[%clk 0:02:56]} 12. Bb2 {[%clk 0:02:33]}  Nf6 {[%clk 0:02:53]} 13. Bd3 {[%clk 0:02:29]}  O-O {[%clk 0:02:53]} 14. O-O {[%clk 0:02:28]}  Nbd7 {[%clk 0:02:53]} 15. Nd2 {[%clk 0:02:24]}  Qc7 {[%clk 0:02:52]} 16. f4 {[%clk 0:02:02]}  a4 {[%clk 0:02:52]} 17. Ra2 {[%clk 0:01:20]}  Rfd8 {[%clk 0:01:47]} 18. Qe2 {[%clk 0:01:14]}  Qd6 {[%clk 0:01:45]} 19. e4 {[%clk 0:01:00]}  b3 {[%clk 0:01:20]} 20. e5 {[%clk 0:00:55]}  Qb6 {[%clk 0:01:16]} 21. Raa1 {[%clk 0:00:49]}  a3 {[%clk 0:00:43]} 22. Bc3 {[%clk 0:00:48]}  b2 {[%clk 0:00:40]} 23. Ra2 {[%clk 0:00:48]}  Ne8 {[%clk 0:00:22]} 24. Kh1 {[%clk 0:00:45]}  g6 {[%clk 0:00:19]} 25. f5 {[%clk 0:00:28]}  exf5 {[%clk 0:00:18]} 26. d5 {[%clk 0:00:23]}  Nc5 {[%clk 0:00:17]} 27. Bc2 {[%clk 0:00:24]}  Ng7 {[%clk 0:00:17]} 28. Bd4 {[%clk 0:00:20]}  Rxd5 {[%clk 0:00:17]} 29. cxd5 {[%clk 0:00:20]}  Bxd5 {[%clk 0:00:18]} 30. Bb1 {[%clk 0:00:17]}  Nge6 {[%clk 0:00:18]} 31. Be3 {[%clk 0:00:17]}  Qc6 {[%clk 0:00:18]} 32. Nf3 {[%clk 0:00:06]}  Ne4 {[%clk 0:00:17]} 33. Bxe4 {[%clk 0:00:02]}  fxe4 {[%clk 0:00:17]} 34. Nd4 {[%clk 0:00:02]}  Nxd4 {[%clk 0:00:17]} 35. Bxd4 {[%clk 0:00:02]}  Bxa2 {[%clk 0:00:18]} 36. e6 {[%clk 0:00:02]}  Bxe6 {[%clk 0:00:17]} 37. Qf2 {[%clk 0:00:02]}  Rd8 {[%clk 0:00:09]} 38. Qf6 {[%clk 0:00:01]}  Rxd4 {[%clk 0:00:09]} 39. Qxd4 {[%clk 0:00:01]}  Qd5 {[%clk 0:00:06]} 40. Qf6 {[%clk 0:00:01]}  a2 {[%clk 0:00:03]} 0-1


[Site "https://www.chess.com"]

[Event "Titled Tuesday Blitz August 09 Early 2022"]
[White "Vargas, Mauricio"]
[Black "Vagman, Roy"]
[WhiteFideId "4404572"]
[BlackFideId "2828995"]
[WhiteElo "2004"]
[BlackElo "1956"]
[Result "0-1"]
[Round "01"]
[TimeControl "180+1"]
[Date "2022.08.09"]
[WhiteClock "0:01:29"]
[BlackClock "0:01:50"]

1. e4 {[%clk 0:02:58]}  c5 {[%clk 0:02:57]} 2. Nc3 {[%clk 0:02:50]}  Nc6 {[%clk 0:02:57]} 3. f4 {[%clk 0:02:51]}  e6 {[%clk 0:02:56]} 4. Nf3 {[%clk 0:02:52]}  d5 {[%clk 0:02:52]} 5. e5 {[%clk 0:02:52]}  h5 {[%clk 0:02:50]} 6. Bb5 {[%clk 0:02:51]}  Bd7 {[%clk 0:02:50]} 7. Bxc6 {[%clk 0:02:50]}  Bxc6 {[%clk 0:02:49]} 8. O-O {[%clk 0:02:51]}  d4 {[%clk 0:02:49]} 9. Ne2 {[%clk 0:02:50]}  Nh6 {[%clk 0:02:48]} 10. d3 {[%clk 0:02:47]}  Nf5 {[%clk 0:02:46]} 11. Qe1 {[%clk 0:02:36]}  Be7 {[%clk 0:02:43]} 12. Ng3 {[%clk 0:02:30]}  g6 {[%clk 0:02:29]} 13. Ne4 {[%clk 0:02:28]}  Qd5 {[%clk 0:02:19]} 14. Nfg5 {[%clk 0:02:27]}  Bxg5 {[%clk 0:02:12]} 15. fxg5 {[%clk 0:02:20]}  O-O-O {[%clk 0:02:12]} 16. Bf4 {[%clk 0:02:19]}  h4 {[%clk 0:02:07]} 17. Rf2 {[%clk 0:02:19]}  h3 {[%clk 0:02:05]} 18. g3 {[%clk 0:02:18]}  b6 {[%clk 0:02:02]} 19. Kf1 {[%clk 0:02:16]}  Kb8 {[%clk 0:02:00]} 20. Ke2 {[%clk 0:02:15]}  c4 {[%clk 0:02:00]} 21. Rc1 {[%clk 0:01:54]}  Bb5 {[%clk 0:01:52]} 22. b3 {[%clk 0:01:32]}  cxd3+ {[%clk 0:01:51]} 23. cxd3 {[%clk 0:01:32]}  Qxe4+ {[%clk 0:01:51]} 24. Kd2 {[%clk 0:01:29]}  Qxd3# {[%clk 0:01:50]} 0-1


[Site "https://www.chess.com"]

[Event "Titled Tuesday Blitz August 09 Early 2022"]
[White "Vasques, Antonio Pedro Freixial"]
[Black "Gurevich, Dmitry"]
[WhiteFideId "1908332"]
[BlackFideId "2000407"]
[WhiteElo "2243"]
[BlackElo "2506"]
[Result "0-1"]
[Round "01"]
[TimeControl "180+1"]
[Date "2022.08.09"]
[WhiteClock "0:00:18"]
[BlackClock "0:00:20"]

1. e4 {[%clk 0:02:55]}  c5 {[%clk 0:02:59]} 2. Nf3 {[%clk 0:02:54]}  d6 {[%clk 0:02:59]} 3. d4 {[%clk 0:02:52]}  cxd4 {[%clk 0:02:59]} 4. Nxd4 {[%clk 0:02:53]}  Nf6 {[%clk 0:02:58]} 5. Nc3 {[%clk 0:02:53]}  Nc6 {[%clk 0:02:58]} 6. Bg5 {[%clk 0:02:52]}  e6 {[%clk 0:02:57]} 7. Qd2 {[%clk 0:02:51]}  Be7 {[%clk 0:02:57]} 8. O-O-O {[%clk 0:02:50]}  O-O {[%clk 0:02:57]} 9. Kb1 {[%clk 0:02:48]}  Nxd4 {[%clk 0:02:42]} 10. Qxd4 {[%clk 0:02:44]}  Nxe4 {[%clk 0:02:38]} 11. Nxe4 {[%clk 0:02:41]}  Bxg5 {[%clk 0:02:37]} 12. Nxg5 {[%clk 0:02:27]}  Qxg5 {[%clk 0:02:36]} 13. Qxd6 {[%clk 0:02:28]}  b6 {[%clk 0:02:29]} 14. h4 {[%clk 0:02:24]}  Qf6 {[%clk 0:02:27]} 15. Qc7 {[%clk 0:02:05]}  e5 {[%clk 0:02:21]} 16. Bd3 {[%clk 0:01:51]}  Bf5 {[%clk 0:02:08]} 17. f3 {[%clk 0:01:22]}  Rfc8 {[%clk 0:01:59]} 18. Qb7 {[%clk 0:01:15]}  h6 {[%clk 0:01:54]} 19. Rhe1 {[%clk 0:01:11]}  g6 {[%clk 0:01:47]} 20. h5 {[%clk 0:01:08]}  gxh5 {[%clk 0:01:43]} 21. Qd5 {[%clk 0:01:00]}  Re8 {[%clk 0:01:36]} 22. Rh1 {[%clk 0:00:37]}  Rad8 {[%clk 0:01:29]} 23. Qb5 {[%clk 0:00:38]}  Bg6 {[%clk 0:01:18]} 24. Be4 {[%clk 0:00:31]}  Bxe4 {[%clk 0:01:15]} 25. fxe4 {[%clk 0:00:31]}  Kg7 {[%clk 0:01:11]} 26. a4 {[%clk 0:00:31]}  h4 {[%clk 0:01:07]} 27. Qe2 {[%clk 0:00:30]}  Qg5 {[%clk 0:01:01]} 28. Qf3 {[%clk 0:00:26]}  Rxd1+ {[%clk 0:00:55]} 29. Rxd1 {[%clk 0:00:27]}  Rd8 {[%clk 0:00:54]} 30. Rf1 {[%clk 0:00:19]}  Rd7 {[%clk 0:00:54]} 31. b3 {[%clk 0:00:17]}  a5 {[%clk 0:00:53]} 32. Kb2 {[%clk 0:00:18]}  Kg6 {[%clk 0:00:48]} 33. Rh1 {[%clk 0:00:18]}  Rd2 {[%clk 0:00:44]} 34. Rf1 {[%clk 0:00:19]}  f6 {[%clk 0:00:43]} 35. Qc3 {[%clk 0:00:19]}  Rxg2 {[%clk 0:00:38]} 36. Qc8 {[%clk 0:00:18]}  Kh7 {[%clk 0:00:32]} 37. Qd7+ {[%clk 0:00:17]}  Qg7 {[%clk 0:00:31]} 38. Qf5+ {[%clk 0:00:17]}  Rg6 {[%clk 0:00:30]} 39. Rh1 {[%clk 0:00:17]}  Qc7 {[%clk 0:00:27]} 40. Rxh4 {[%clk 0:00:18]}  Kg7 {[%clk 0:00:26]} 41. Rg4 {[%clk 0:00:18]}  Rg5 {[%clk 0:00:24]} 42. Qf3 {[%clk 0:00:17]}  Qf7 {[%clk 0:00:21]} 43. Rxg5+ {[%clk 0:00:18]}  fxg5 {[%clk 0:00:20]} 44. c4 {[%clk 0:00:18]}  Qxf3 {[%clk 0:00:20]} 0-1


[Site "https://www.chess.com"]

[Event "Titled Tuesday Blitz August 09 Early 2022"]
[White "Vazquez Espino, Uriel"]
[Black "Costachi, Mihnea"]
[WhiteFideId "5119138"]
[BlackFideId "1217518"]
[WhiteElo "2401"]
[BlackElo "2437"]
[Result "0-1"]
[Round "01"]
[TimeControl "180+1"]
[Date "2022.08.09"]
[WhiteClock "0:00:15"]
[BlackClock "0:00:41"]

1. e4 {[%clk 0:03:00]}  c5 {[%clk 0:02:57]} 2. Nf3 {[%clk 0:03:00]}  d6 {[%clk 0:02:53]} 3. Bb5+ {[%clk 0:02:54]}  Nd7 {[%clk 0:02:49]} 4. O-O {[%clk 0:02:53]}  g6 {[%clk 0:02:47]} 5. d4 {[%clk 0:02:52]}  Bg7 {[%clk 0:02:42]} 6. c3 {[%clk 0:02:49]}  cxd4 {[%clk 0:02:36]} 7. cxd4 {[%clk 0:02:49]}  a6 {[%clk 0:02:34]} 8. Be2 {[%clk 0:02:38]}  Ngf6 {[%clk 0:02:28]} 9. Nc3 {[%clk 0:02:38]}  O-O {[%clk 0:02:28]} 10. h3 {[%clk 0:02:29]}  b5 {[%clk 0:02:27]} 11. a3 {[%clk 0:02:23]}  Bb7 {[%clk 0:02:27]} 12. e5 {[%clk 0:02:15]}  Nd5 {[%clk 0:02:16]} 13. exd6 {[%clk 0:02:08]}  exd6 {[%clk 0:02:14]} 14. Ne4 {[%clk 0:02:07]}  N7f6 {[%clk 0:02:07]} 15. Ng3 {[%clk 0:01:52]}  Re8 {[%clk 0:02:04]} 16. Re1 {[%clk 0:01:49]}  h6 {[%clk 0:02:00]} 17. Bd2 {[%clk 0:01:45]}  Ne4 {[%clk 0:01:58]} 18. Nxe4 {[%clk 0:01:40]}  Rxe4 {[%clk 0:01:59]} 19. Bd3 {[%clk 0:01:39]}  Rxe1+ {[%clk 0:01:56]} 20. Qxe1 {[%clk 0:01:40]}  Qf6 {[%clk 0:01:46]} 21. Qe4 {[%clk 0:01:30]}  Rb8 {[%clk 0:01:40]} 22. Qg4 {[%clk 0:01:26]}  Bc8 {[%clk 0:01:34]} 23. Qg3 {[%clk 0:01:24]}  Bf8 {[%clk 0:01:26]} 24. Re1 {[%clk 0:01:18]}  Bf5 {[%clk 0:01:26]} 25. Bf1 {[%clk 0:01:09]}  Rc8 {[%clk 0:01:18]} 26. a4 {[%clk 0:01:03]}  Bd7 {[%clk 0:01:11]} 27. Bc1 {[%clk 0:00:50]}  Nb4 {[%clk 0:00:57]} 28. Qf4 {[%clk 0:00:42]}  Qxf4 {[%clk 0:00:53]} 29. Bxf4 {[%clk 0:00:43]}  bxa4 {[%clk 0:00:54]} 30. Bd2 {[%clk 0:00:34]}  a5 {[%clk 0:00:51]} 31. Bc3 {[%clk 0:00:27]}  a3 {[%clk 0:00:49]} 32. Ra1 {[%clk 0:00:24]}  Nc2 {[%clk 0:00:45]} 33. Ra2 {[%clk 0:00:20]}  Be6 {[%clk 0:00:44]} 34. Bd3 {[%clk 0:00:15]}  Bxa2 {[%clk 0:00:42]} 35. Bxc2 {[%clk 0:00:15]}  Bd5 {[%clk 0:00:41]} 0-1


[Site "https://www.chess.com"]

[Event "Titled Tuesday Blitz August 09 Early 2022"]
[White "Vifleemskaia, Svetlana"]
[Black "Melikyan, Gnel"]
[WhiteFideId "4129490"]
[BlackFideId "54109990"]
[WhiteElo "1929"]
[BlackElo "1772"]
[Result "0-1"]
[Round "01"]
[TimeControl "180+1"]
[Date "2022.08.09"]
[WhiteClock "0:00:07"]
[BlackClock "0:00:50"]

1. d4 {[%clk 0:02:03]}  Nf6 {[%clk 0:02:56]} 2. c4 {[%clk 0:02:03]}  g6 {[%clk 0:02:56]} 3. Nc3 {[%clk 0:02:02]}  Bg7 {[%clk 0:02:57]} 4. e4 {[%clk 0:02:03]}  d6 {[%clk 0:02:57]} 5. Nge2 {[%clk 0:02:03]}  O-O {[%clk 0:02:57]} 6. Ng3 {[%clk 0:02:04]}  c5 {[%clk 0:02:55]} 7. d5 {[%clk 0:02:05]}  e6 {[%clk 0:02:55]} 8. Be2 {[%clk 0:02:04]}  exd5 {[%clk 0:02:55]} 9. cxd5 {[%clk 0:02:05]}  Re8 {[%clk 0:02:48]} 10. O-O {[%clk 0:02:04]}  a6 {[%clk 0:02:47]} 11. a4 {[%clk 0:02:03]}  Nbd7 {[%clk 0:02:45]} 12. Bf4 {[%clk 0:01:58]}  Ne5 {[%clk 0:02:40]} 13. Qd2 {[%clk 0:01:58]}  Bd7 {[%clk 0:02:37]} 14. Bh6 {[%clk 0:01:54]}  b5 {[%clk 0:02:27]} 15. Bxg7 {[%clk 0:01:52]}  Kxg7 {[%clk 0:02:27]} 16. axb5 {[%clk 0:01:51]}  axb5 {[%clk 0:02:28]} 17. Nxb5 {[%clk 0:01:48]}  Qb6 {[%clk 0:02:20]} 18. Nc3 {[%clk 0:01:41]}  Rxa1 {[%clk 0:02:18]} 19. Rxa1 {[%clk 0:01:39]}  Rb8 {[%clk 0:02:19]} 20. Ra2 {[%clk 0:01:38]}  Qb3 {[%clk 0:02:17]} 21. Bd1 {[%clk 0:01:31]}  Qb4 {[%clk 0:02:11]} 22. b3 {[%clk 0:01:24]}  c4 {[%clk 0:01:59]} 23. bxc4 {[%clk 0:01:05]}  Nxc4 {[%clk 0:01:57]} 24. Qd4 {[%clk 0:01:05]}  Ne5 {[%clk 0:01:52]} 25. Qxb4 {[%clk 0:01:02]}  Rxb4 {[%clk 0:01:53]} 26. f3 {[%clk 0:00:51]}  Rc4 {[%clk 0:01:46]} 27. Ra3 {[%clk 0:00:45]}  Be8 {[%clk 0:01:37]} 28. Be2 {[%clk 0:00:43]}  Rc5 {[%clk 0:01:34]} 29. Kf2 {[%clk 0:00:41]}  h5 {[%clk 0:01:33]} 30. h4 {[%clk 0:00:40]}  Nc4 {[%clk 0:01:31]} 31. Bxc4 {[%clk 0:00:38]}  Rxc4 {[%clk 0:01:32]} 32. Nge2 {[%clk 0:00:37]}  Kf8 {[%clk 0:01:22]} 33. Ke3 {[%clk 0:00:35]}  Nd7 {[%clk 0:01:21]} 34. Ra4 {[%clk 0:00:20]}  Rc5 {[%clk 0:01:13]} 35. Ra6 {[%clk 0:00:18]}  Ke7 {[%clk 0:01:13]} 36. Ra7 {[%clk 0:00:18]}  f5 {[%clk 0:01:04]} 37. Kd3 {[%clk 0:00:16]}  Kf6 {[%clk 0:01:01]} 38. Ra6 {[%clk 0:00:14]}  Ne5+ {[%clk 0:01:02]} 39. Kc2 {[%clk 0:00:11]}  Ke7 {[%clk 0:00:56]} 40. Ra7+ {[%clk 0:00:10]}  Bd7 {[%clk 0:00:56]} 41. Nd4 {[%clk 0:00:09]}  Rc4 {[%clk 0:00:53]} 42. Ne2 {[%clk 0:00:09]}  fxe4 {[%clk 0:00:53]} 43. fxe4 {[%clk 0:00:09]}  Kd8 {[%clk 0:00:53]} 44. Ra8+ {[%clk 0:00:08]}  Kc7 {[%clk 0:00:53]} 45. Rg8 {[%clk 0:00:08]}  Bg4 {[%clk 0:00:52]} 46. Kd2 {[%clk 0:00:07]}  Bxe2 {[%clk 0:00:51]} 47. Nxe2 {[%clk 0:00:07]}  Rxe4 {[%clk 0:00:51]} 48. Rxg6 {[%clk 0:00:07]}  Nxg6 {[%clk 0:00:50]} 0-1


[Site "https://www.chess.com"]

[Event "Titled Tuesday Blitz August 09 Early 2022"]
[White "Volkov, Maksim"]
[Black "Cannon, David"]
[WhiteFideId "54123070"]
[BlackFideId "3213110"]
[WhiteElo "2155"]
[BlackElo "1901"]
[Result "1-0"]
[Round "01"]
[TimeControl "180+1"]
[Date "2022.08.09"]
[WhiteClock "0:00:31"]
[BlackClock "0:01:23"]

1. d4 {[%clk 0:03:00]}  Nf6 {[%clk 0:03:00]} 2. c4 {[%clk 0:03:01]}  g6 {[%clk 0:03:01]} 3. g3 {[%clk 0:03:01]}  Bg7 {[%clk 0:03:02]} 4. Bg2 {[%clk 0:03:02]}  O-O {[%clk 0:03:02]} 5. Nc3 {[%clk 0:03:02]}  d6 {[%clk 0:03:03]} 6. Nf3 {[%clk 0:03:03]}  Nc6 {[%clk 0:03:03]} 7. O-O {[%clk 0:03:03]}  a6 {[%clk 0:03:04]} 8. d5 {[%clk 0:03:02]}  Na5 {[%clk 0:03:04]} 9. b3 {[%clk 0:03:03]}  c5 {[%clk 0:03:05]} 10. dxc6 {[%clk 0:03:02]}  Nxc6 {[%clk 0:03:05]} 11. Bg5 {[%clk 0:03:03]}  Be6 {[%clk 0:03:01]} 12. Rc1 {[%clk 0:03:02]}  Rc8 {[%clk 0:02:58]} 13. Qd2 {[%clk 0:02:57]}  Re8 {[%clk 0:02:48]} 14. Rfd1 {[%clk 0:02:56]}  Qa5 {[%clk 0:02:48]} 15. Bh6 {[%clk 0:02:46]}  Bh8 {[%clk 0:02:44]} 16. Ne1 {[%clk 0:02:33]}  b5 {[%clk 0:02:36]} 17. cxb5 {[%clk 0:02:04]}  axb5 {[%clk 0:02:37]} 18. Nd3 {[%clk 0:01:57]}  b4 {[%clk 0:02:25]} 19. Na4 {[%clk 0:01:57]}  d5 {[%clk 0:02:24]} 20. Rc5 {[%clk 0:01:49]}  Qa7 {[%clk 0:02:19]} 21. Rdc1 {[%clk 0:01:46]}  Nd4 {[%clk 0:02:17]} 22. Nxb4 {[%clk 0:01:45]}  Rxc5 {[%clk 0:02:15]} 23. Nxc5 {[%clk 0:01:44]}  Ng4 {[%clk 0:02:13]} 24. Be3 {[%clk 0:01:31]}  Nxe3 {[%clk 0:02:08]} 25. Qxe3 {[%clk 0:01:30]}  Rc8 {[%clk 0:02:02]} 26. Nxe6 {[%clk 0:01:25]}  Rxc1+ {[%clk 0:02:00]} 27. Bf1 {[%clk 0:01:24]}  Rc8 {[%clk 0:01:53]} 28. Nf4 {[%clk 0:01:05]}  e6 {[%clk 0:01:51]} 29. Nfd3 {[%clk 0:00:51]}  Qc7 {[%clk 0:01:48]} 30. h4 {[%clk 0:00:48]}  Nc2 {[%clk 0:01:46]} 31. Nxc2 {[%clk 0:00:45]}  Qxc2 {[%clk 0:01:47]} 32. Qa7 {[%clk 0:00:45]}  h5 {[%clk 0:01:42]} 33. Nf4 {[%clk 0:00:39]}  Be5 {[%clk 0:01:35]} 34. Nd3 {[%clk 0:00:38]}  Bf6 {[%clk 0:01:33]} 35. Qa6 {[%clk 0:00:36]}  Kg7 {[%clk 0:01:28]} 36. Nb4 {[%clk 0:00:35]}  Qd2 {[%clk 0:01:23]} 37. Qxc8 {[%clk 0:00:33]}  Qxb4 {[%clk 0:01:22]} 38. Qc2 {[%clk 0:00:33]}  Qe1 {[%clk 0:01:22]} 39. e3 {[%clk 0:00:32]}  g5 {[%clk 0:01:23]} 40. hxg5 {[%clk 0:00:32]}  Bxg5 {[%clk 0:01:24]} 41. Qe2 {[%clk 0:00:31]}  Qc3 {[%clk 0:01:23]} 42. Qxh5 {[%clk 0:00:31]} 1-0


[Site "https://www.chess.com"]

[Event "Titled Tuesday Blitz August 09 Early 2022"]
[White "Walker, Powell"]
[Black "Yedidia, Daniel"]
[WhiteFideId "2097184"]
[BlackFideId "30905907"]
[WhiteElo "2192"]
[BlackElo "2537"]
[Result "0-1"]
[Round "01"]
[TimeControl "180+1"]
[Date "2022.08.09"]
[WhiteClock "0:00:16"]
[BlackClock "0:00:37"]

1. d4 {[%clk 0:03:00]}  Nf6 {[%clk 0:02:56]} 2. Nf3 {[%clk 0:03:00]}  b6 {[%clk 0:02:56]} 3. Bf4 {[%clk 0:02:59]}  Bb7 {[%clk 0:02:49]} 4. e3 {[%clk 0:03:00]}  e6 {[%clk 0:02:48]} 5. c4 {[%clk 0:02:58]}  d5 {[%clk 0:02:46]} 6. Nc3 {[%clk 0:02:57]}  Be7 {[%clk 0:02:45]} 7. Bd3 {[%clk 0:02:56]}  O-O {[%clk 0:02:45]} 8. h3 {[%clk 0:02:54]}  Nbd7 {[%clk 0:02:44]} 9. O-O {[%clk 0:02:53]}  c5 {[%clk 0:02:43]} 10. dxc5 {[%clk 0:02:50]}  Nxc5 {[%clk 0:02:42]} 11. Be2 {[%clk 0:02:48]}  Rc8 {[%clk 0:02:38]} 12. cxd5 {[%clk 0:02:47]}  Nxd5 {[%clk 0:02:37]} 13. Nxd5 {[%clk 0:02:45]}  Qxd5 {[%clk 0:02:34]} 14. Qxd5 {[%clk 0:02:44]}  Bxd5 {[%clk 0:02:35]} 15. Rfd1 {[%clk 0:02:43]}  Rfd8 {[%clk 0:02:32]} 16. Rac1 {[%clk 0:02:02]}  h6 {[%clk 0:02:24]} 17. b3 {[%clk 0:01:32]}  f6 {[%clk 0:02:11]} 18. Nd2 {[%clk 0:01:19]}  Kf8 {[%clk 0:02:03]} 19. Nc4 {[%clk 0:01:11]}  e5 {[%clk 0:02:00]} 20. Bg3 {[%clk 0:01:05]}  Ne4 {[%clk 0:01:54]} 21. Bh2 {[%clk 0:00:58]}  b5 {[%clk 0:01:52]} 22. Na5 {[%clk 0:00:35]}  Rxc1 {[%clk 0:01:21]} 23. Rxc1 {[%clk 0:00:34]}  Bb4 {[%clk 0:01:21]} 24. Nc6 {[%clk 0:00:32]}  Rc8 {[%clk 0:01:07]} 25. Bxb5 {[%clk 0:00:30]}  Ba3 {[%clk 0:00:58]} 26. Rc2 {[%clk 0:00:22]}  Nd6 {[%clk 0:00:37]} 27. Bg3 {[%clk 0:00:16]}  Nxb5 {[%clk 0:00:37]} 0-1


[Site "https://www.chess.com"]

[Event "Titled Tuesday Blitz August 09 Early 2022"]
[White "White, John S."]
[Black "Toncheva, Nadya"]
[WhiteFideId "2502348"]
[BlackFideId "2924056"]
[WhiteElo "1600"]
[BlackElo "1888"]
[Result "0-1"]
[Round "01"]
[TimeControl "180+1"]
[Date "2022.08.09"]
[WhiteClock "0:01:17"]
[BlackClock "0:01:44"]

1. e4 {[%clk 0:02:59]}  c5 {[%clk 0:02:56]} 2. Nf3 {[%clk 0:02:58]}  Nc6 {[%clk 0:02:53]} 3. d4 {[%clk 0:02:57]}  cxd4 {[%clk 0:02:53]} 4. Nxd4 {[%clk 0:02:56]}  g6 {[%clk 0:02:54]} 5. Nc3 {[%clk 0:02:55]}  Bg7 {[%clk 0:02:54]} 6. Bc4 {[%clk 0:02:53]}  Nxd4 {[%clk 0:02:39]} 7. Be3 {[%clk 0:02:49]}  Nc6 {[%clk 0:02:36]} 8. O-O {[%clk 0:02:41]}  Nf6 {[%clk 0:02:26]} 9. f4 {[%clk 0:02:39]}  O-O {[%clk 0:02:26]} 10. Kh1 {[%clk 0:02:38]}  d6 {[%clk 0:02:26]} 11. Qf3 {[%clk 0:02:35]}  a6 {[%clk 0:02:17]} 12. Rad1 {[%clk 0:02:32]}  Qa5 {[%clk 0:02:15]} 13. Bd3 {[%clk 0:02:25]}  Bg4 {[%clk 0:02:15]} 14. Qg3 {[%clk 0:02:21]}  Bxd1 {[%clk 0:02:15]} 15. Rxd1 {[%clk 0:02:20]}  Rac8 {[%clk 0:02:09]} 16. h4 {[%clk 0:02:18]}  Nh5 {[%clk 0:02:06]} 17. Qg4 {[%clk 0:02:14]}  Nb4 {[%clk 0:02:02]} 18. f5 {[%clk 0:02:12]}  Nxd3 {[%clk 0:01:59]} 19. Rxd3 {[%clk 0:02:10]}  Qe5 {[%clk 0:01:53]} 20. Bd4 {[%clk 0:01:45]}  Qf4 {[%clk 0:01:52]} 21. Qe2 {[%clk 0:01:43]}  Bxd4 {[%clk 0:01:47]} 22. Nd5 {[%clk 0:01:33]}  Qxh4+ {[%clk 0:01:45]} 23. Rh3 {[%clk 0:01:31]}  Ng3+ {[%clk 0:01:45]} 24. Kh2 {[%clk 0:01:25]}  Qxh3+ {[%clk 0:01:44]} 25. Kxh3 {[%clk 0:01:19]}  Nxe2 {[%clk 0:01:44]} 26. Nxe7+ {[%clk 0:01:18]}  Kg7 {[%clk 0:01:43]} 27. Nxc8 {[%clk 0:01:17]}  Rxc8 {[%clk 0:01:44]} 28. f6+ {[%clk 0:01:17]}  Kxf6 {[%clk 0:01:44]} 0-1


[Site "https://www.chess.com"]

[Event "Titled Tuesday Blitz August 09 Early 2022"]
[White "Williams, Simon K"]
[Black "Fajdetic, Hrvoje"]
[WhiteFideId "404454"]
[BlackFideId "14501945"]
[WhiteElo "2468"]
[BlackElo "2172"]
[Result "0-1"]
[Round "01"]
[TimeControl "180+1"]
[Date "2022.08.09"]
[WhiteClock "0:00:14"]
[BlackClock "0:00:05"]

1. d4 {[%clk 0:02:59]}  e6 {[%clk 0:02:47]} 2. Nf3 {[%clk 0:02:57]}  f5 {[%clk 0:02:47]} 3. e4 {[%clk 0:02:52]}  fxe4 {[%clk 0:02:45]} 4. Ng5 {[%clk 0:02:52]}  d5 {[%clk 0:02:43]} 5. f3 {[%clk 0:02:52]}  e3 {[%clk 0:02:39]} 6. Bxe3 {[%clk 0:02:50]}  Be7 {[%clk 0:02:34]} 7. f4 {[%clk 0:02:39]}  Nf6 {[%clk 0:02:29]} 8. Bd3 {[%clk 0:02:37]}  c5 {[%clk 0:02:20]} 9. Nxe6 {[%clk 0:02:38]}  Bxe6 {[%clk 0:02:14]} 10. dxc5 {[%clk 0:02:27]}  Na6 {[%clk 0:01:58]} 11. c6 {[%clk 0:02:19]}  Nc5 {[%clk 0:01:28]} 12. cxb7 {[%clk 0:02:18]}  Nxd3+ {[%clk 0:01:16]} 13. Qxd3 {[%clk 0:02:17]}  Rb8 {[%clk 0:01:17]} 14. Qa6 {[%clk 0:02:12]}  Qd7 {[%clk 0:01:11]} 15. Bxa7 {[%clk 0:02:03]}  Rxb7 {[%clk 0:01:10]} 16. Bd4 {[%clk 0:02:02]}  O-O {[%clk 0:01:03]} 17. Nd2 {[%clk 0:02:01]}  Ne4 {[%clk 0:00:59]} 18. Nxe4 {[%clk 0:01:59]}  dxe4 {[%clk 0:01:00]} 19. O-O-O {[%clk 0:01:54]}  Qc8 {[%clk 0:00:42]} 20. Rhe1 {[%clk 0:01:38]}  Bf5 {[%clk 0:00:31]} 21. h3 {[%clk 0:01:35]}  Qa8 {[%clk 0:00:20]} 22. Qxa8 {[%clk 0:01:31]}  Rxa8 {[%clk 0:00:19]} 23. g4 {[%clk 0:01:31]}  Bd7 {[%clk 0:00:12]} 24. a3 {[%clk 0:01:30]}  Bc6 {[%clk 0:00:11]} 25. Re3 {[%clk 0:01:16]}  Bh4 {[%clk 0:00:10]} 26. Rc3 {[%clk 0:01:11]}  Ra6 {[%clk 0:00:10]} 27. g5 {[%clk 0:01:07]}  h6 {[%clk 0:00:09]} 28. gxh6 {[%clk 0:01:06]}  gxh6 {[%clk 0:00:10]} 29. Rg1+ {[%clk 0:01:04]}  Kh7 {[%clk 0:00:10]} 30. Rc5 {[%clk 0:00:59]}  Rf7 {[%clk 0:00:09]} 31. f5 {[%clk 0:00:48]}  Bf6 {[%clk 0:00:08]} 32. Bxf6 {[%clk 0:00:47]}  Rxf6 {[%clk 0:00:09]} 33. Re5 {[%clk 0:00:47]}  Ra7 {[%clk 0:00:08]} 34. b4 {[%clk 0:00:43]}  Raf7 {[%clk 0:00:08]} 35. c4 {[%clk 0:00:37]}  Rxf5 {[%clk 0:00:08]} 36. Re6 {[%clk 0:00:37]}  R5f6 {[%clk 0:00:08]} 37. Rxf6 {[%clk 0:00:36]}  Rxf6 {[%clk 0:00:09]} 38. b5 {[%clk 0:00:36]}  Bb7 {[%clk 0:00:07]} 39. a4 {[%clk 0:00:37]}  Rf5 {[%clk 0:00:07]} 40. Kd2 {[%clk 0:00:36]}  Rf3 {[%clk 0:00:06]} 41. a5 {[%clk 0:00:35]}  Rd3+ {[%clk 0:00:06]} 42. Kc2 {[%clk 0:00:36]}  Ra3 {[%clk 0:00:05]} 43. a6 {[%clk 0:00:36]}  Bxa6 {[%clk 0:00:05]} 44. bxa6 {[%clk 0:00:36]}  Rxa6 {[%clk 0:00:06]} 45. Kc3 {[%clk 0:00:35]}  Re6 {[%clk 0:00:06]} 46. Re1 {[%clk 0:00:34]}  Kg6 {[%clk 0:00:05]} 47. Kd4 {[%clk 0:00:34]}  Kf5 {[%clk 0:00:06]} 48. Rf1+ {[%clk 0:00:34]}  Kg5 {[%clk 0:00:06]} 49. Kd5 {[%clk 0:00:33]}  Re8 {[%clk 0:00:05]} 50. Re1 {[%clk 0:00:30]}  e3 {[%clk 0:00:06]} 51. Kd4 {[%clk 0:00:30]}  Kf4 {[%clk 0:00:06]} 52. c5 {[%clk 0:00:30]}  Kf3 {[%clk 0:00:06]} 53. Kd3 {[%clk 0:00:26]}  Kf2 {[%clk 0:00:05]} 54. Re2+ {[%clk 0:00:27]}  Kf3 {[%clk 0:00:06]} 55. Re1 {[%clk 0:00:21]}  e2 {[%clk 0:00:06]} 56. c6 {[%clk 0:00:20]}  Kf2 {[%clk 0:00:06]} 57. Kd2 {[%clk 0:00:14]}  Rd8+ {[%clk 0:00:05]} 0-1


[Site "https://www.chess.com"]